lending/lending_fUSD_20251121
["ID","MTS","AMOUNT","RATE_DAILY","PERIOD"]
[394584763,1763737841770,-500.0,0.00017999,2]
[394584764,1763737841779,-610.13436629,0.00017999,2]
[394584765,1763737841789,-500.0,0.00017999,2]
[394584766,1763737841798,-507.28230435,0.00017999,2]
[394584767,1763737841808,-500.0,0.00017999,2]
[394584768,1763737841817,-648.3,0.00017999,2]
[394584769,1763737841826,-648.3,0.00017999,2]
[394584770,1763737841835,-648.3,0.00017999,2]
[394584771,1763737841845,-648.3,0.00017999,2]
[394584772,1763737841854,-648.3,0.00017999,2]
[394584773,1763737841863,-648.3,0.00017999,2]
[394584774,1763737841877,-648.3,0.00017999,2]
[394584775,1763737841886,-648.3,0.00017999,2]
[394584776,1763737841896,-648.3,0.00017999,2]
[394584777,1763737841905,-648.3,0.00017999,2]
[394584778,1763737841915,-648.3,0.00017999,2]
[394584779,1763737841925,-648.3,0.00017999,2]
[394584780,1763737841935,-648.3,0.00017999,2]
[394584781,1763737841945,-648.3,0.00017999,2]
[394584782,1763737841954,-648.3,0.00017999,2]
[394584783,1763737841964,-648.3,0.00017999,2]
[394584784,1763737841973,-648.3,0.00017999,2]
[394584785,1763737841983,-648.3,0.00017999,2]
[394584786,1763737841993,-648.3,0.00017999,2]
[394584787,1763737842008,-648.3,0.00017999,2]
[394584788,1763737842018,-648.3,0.00017999,2]
[394584789,1763737842028,-648.3,0.00017999,2]
[394584790,1763737842038,-648.37985602,0.00017999,2]
[394584791,1763737842047,-500.0,0.00017999,2]
[394584792,1763737842057,-500.0,0.00017999,2]
[394584793,1763737842067,-500.0,0.00017999,2]
[394584794,1763737842076,-500.0,0.00017999,2]
[394584795,1763737842086,-500.0,0.00017999,2]
[394584796,1763737842096,-500.0,0.00017999,2]
[394584797,1763737842106,-500.0,0.00017999,2]
[394584798,1763737842116,-500.0,0.00017999,2]
[394584799,1763737842130,-500.0,0.00017999,2]
[394584800,1763737842139,-500.0,0.00017999,2]
[394584801,1763737842149,-595.05190118,0.00017999,2]
[394584802,1763737842159,-300.0,0.00017999,2]
[394584803,1763737842169,-666.0,0.00017999,2]
[394584804,1763737842179,-300.0,0.00017999,2]
[394584805,1763737842189,-927.99,0.00017999,2]
[394584806,1763737842199,-927.99,0.00017999,2]
[394584807,1763737842209,-927.99,0.00017999,2]
[394584808,1763737842219,-927.99,0.00017999,2]
[394584809,1763737842228,-927.99,0.00017999,2]
[394584810,1763737842238,-927.99,0.00017999,2]
[394584811,1763737842247,-927.99,0.00017999,2]
[394584812,1763737842256,-927.99,0.00017999,2]
[394584813,1763737842266,-927.99,0.00017999,2]
[394584814,1763737842276,-927.99,0.00017999,2]
[394584815,1763737842285,-927.99,0.00017999,2]
[394584816,1763737842295,-927.99,0.00017999,2]
[394584817,1763737842308,-927.99,0.00017999,2]
[394584818,1763737842318,-927.99,0.00017999,2]
[394584819,1763737842327,-927.99,0.00017999,2]
[394584820,1763737842337,-927.99,0.00017999,2]
[394584821,1763737842347,-927.99,0.00017999,2]
[394584822,1763737842357,-927.99,0.00017999,2]
[394584823,1763737842366,-927.99,0.00017999,2]
[394584824,1763737842380,-927.99,0.00017999,2]
[394584825,1763737842389,-928.02945968,0.00017999,2]
[394584826,1763737842399,-1081.7436251,0.00017999,5]
[394584827,1763737842408,-1081.7436251,0.00017999,5]
[394584828,1763737842419,-1081.7436251,0.00017999,5]
[394584829,1763737842429,-1081.7436251,0.00017999,5]
[394584830,1763737842438,-1081.7436251,0.00017999,5]
[394584831,1763737842448,-1081.7436251,0.00017999,5]
[394584832,1763737842458,-1081.7436251,0.00017999,5]
[394584833,1763737842467,-1081.74362507,0.00017999,5]
[394584834,1763737842477,-300.0,0.00017999,2]
[394584835,1763737842487,-666.0,0.00017999,2]
[394584836,1763737842496,-300.0,0.00017999,2]
[394584838,1763737842506,-6123.0,0.00018,2]
[394584839,1763737842515,-150.0,0.00018,2]
[394584840,1763737842524,-150.0,0.00018,2]
[394584841,1763737842534,-150.0,0.00018,2]
[394584842,1763737842543,-150.0,0.00018,2]
[394584843,1763737842552,-176.7999999,0.00018,2]
[394584844,1763737842562,-150.0,0.00018,2]
[394584845,1763737842571,-150.0,0.00018,2]
[394584846,1763737842581,-150.0,0.00018,2]
[394584847,1763737842591,-150.0,0.00018,2]
[394584848,1763737842600,-150.0,0.00018,2]
[394584849,1763737842610,-150.0,0.00018,2]
[394584850,1763737842622,-5915982.82700521,0.00018,2]
[394584851,1763737843309,-393.28,0.00017988,2]
[394584852,1763737843321,-284.3,0.00017988,2]
[394584853,1763737843331,-2587.60306428,0.00018,2]
[394584854,1763737843355,-2551.67,0.00018,2]
[394584855,1763737843387,-847599.19832988,0.00018,2]
[394584881,1763737846609,-914.253,0.00017313,2]
[394584882,1763737846619,-139.00425092,0.00017313,2]
[394584883,1763737846652,-1466.99574908,0.00017313,2]
[394584884,1763737846663,-1175.1,0.00017516,2]
[394584885,1763737846674,-500.0,0.00017671,2]
[394584886,1763737846683,-500.0,0.00017808,2]
[394584887,1763737846694,-223.6937853,0.000179,3]
[394584888,1763737846704,-616.08992006,0.00017945,2]
[394584889,1763737846713,-163.74,0.00017988,2]
[394584890,1763737846724,-163.74,0.0001799,2]
[394584891,1763737846733,-163.74,0.0001799,2]
[394584892,1763737846743,-212092.36552574,0.00018,2]
[394584893,1763737846760,-4274.45,0.00018,2]
[394584894,1763737846775,-8502.6,0.00018,2]
[394584895,1763737847485,-13107.91395507,0.00018,2]
[394584896,1763737880726,574.77,0.000215,120]
[394584897,1763737931529,500.0,0.00014946,2]
[394584898,1763737985540,10000.01,0.00015046,2]
[394584899,1763737985574,10000.01,0.00015046,2]
[394584900,1763737985608,10000.01,0.00015046,2]
[394584901,1763737985642,10000.01,0.00015046,2]
[394584902,1763737985677,10000.01,0.00015046,2]
[394584903,1763737985711,10000.01,0.00015046,2]
[394584904,1763737985748,10000.01,0.00015046,2]
[394584905,1763737985781,10000.01,0.00015046,2]
[394584906,1763737985815,10000.01,0.00015046,2]
[394584907,1763737985846,10000.01,0.00015046,2]
[394584908,1763738007849,-9403.98786892,0.00015046,2]
[394584909,1763738008049,-10000.01,0.00015046,2]
[394584910,1763738008208,-10000.01,0.00015046,2]
[394584911,1763738008421,-10000.01,0.00015046,2]
[394584912,1763738008540,-10000.01,0.00015046,2]
[394584913,1763738008679,-10000.01,0.00015046,2]
[394584914,1763738008828,-10000.01,0.00015046,2]
[394584915,1763738008968,-10000.01,0.00015046,2]
[394584916,1763738009107,-10000.01,0.00015046,2]
[394584917,1763738011365,-10000.01,0.00015046,2]
[394584918,1763738011537,-10000.01,0.00015046,2]
[394584919,1763738017767,-10000.01,0.00015046,2]
[394584920,1763738018313,-10000.01,0.00015046,2]
[394584921,1763738018395,-10000.01,0.00015046,2]
[394584922,1763738018454,-10000.01,0.00015046,2]
[394584923,1763738018498,-10000.01,0.00015046,2]
[394584924,1763738018589,-10000.01,0.00015046,2]
[394584925,1763738018748,-10000.01,0.00015046,2]
[394584926,1763738022135,-10000.01,0.00015046,2]
[394584927,1763738022293,-10000.01,0.00015046,2]
[394584928,1763738026226,-10000.01,0.00015046,2]
[394584929,1763738026441,-10000.01,0.00015046,2]
[394584930,1763738028298,-10000.01,0.00015046,2]
[394584931,1763738028320,-10000.01,0.00015046,2]
[394584932,1763738028361,-10000.01,0.00015046,2]
[394584933,1763738028387,-10000.01,0.00015046,2]
[394584934,1763738028407,-10000.01,0.00015046,2]
[394584935,1763738028424,-10000.01,0.00015046,2]
[394584936,1763738033086,-10000.01,0.00015046,2]
[394584937,1763738033189,-10000.01,0.00015046,2]
[394584938,1763738037395,-10000.01,0.00015046,2]
[394584939,1763738037631,-10000.01,0.00015046,2]
[394584940,1763738037719,-10000.01,0.00015046,2]
[394584941,1763738037842,-10000.01,0.00015046,2]
[394584942,1763738038860,-10000.01,0.00015046,2]
[394584943,1763738038882,-10000.01,0.00015046,2]
[394584944,1763738038902,-10000.01,0.00015046,2]
[394584945,1763738039026,-10000.01,0.00015046,2]
[394584946,1763738044329,-300.0,0.00015045,2]
[394584947,1763738044385,-9400.01,0.00015046,2]
[394584948,1763738044515,-10000.01,0.00015046,2]
[394584949,1763738044886,-10000.01,0.00015046,2]
[394584950,1763738045024,-10000.01,0.00015046,2]
[394584951,1763738045294,-10000.01,0.00015046,2]
[394584952,1763738045448,-10000.01,0.00015046,2]
[394584953,1763738045638,-10000.01,0.00015046,2]
[394584954,1763738069181,-10000.01,0.00015046,2]
[394584955,1763738101564,500.0,0.00014946,2]
[394584956,1763738148087,1000.0,0.00014946,2]
[394584957,1763738155484,-300.0,0.00015045,2]
[394584958,1763738155519,-1200.0,0.00015045,2]
[394584959,1763738155552,-300.0,0.00015045,2]
[394584960,1763738155650,-6400.01,0.00015046,2]
[394584961,1763738161218,-10000.01,0.00015046,2]
[394584962,1763738190487,2500.0,0.00014946,2]
[394584963,1763738198960,933.97213578,0.00014996,2]
[394584964,1763738212210,152.52098494,0.00014996,2]
[394584965,1763738247129,588.89813785,0.00022,30]
[394584966,1763738270663,500.0,0.00014946,2]
[394584967,1763738295119,1000.0,0.00014946,2]
[394584968,1763738301543,166.27,0.00013056,2]
[394584969,1763738325155,300.0,0.0001899,14]
[394584970,1763738352758,2904.61381116,0.00014946,2]
[394584971,1763738352781,10000.0,0.00014946,2]
[394584972,1763738352803,10000.0,0.00014946,2]
[394584973,1763738352824,10000.0,0.00014946,2]
[394584974,1763738352846,10000.0,0.00014946,2]
[394584975,1763738425271,-300.0,0.00014945,2]
[394584976,1763738425305,-1200.0,0.00014945,2]
[394584977,1763738425458,-7000.01,0.00014946,2]
[394584978,1763738432607,-1058.30728884,0.00014946,2]
[394584979,1763738432641,-2500.0,0.00014946,2]
[394584980,1763738432675,-1200.0,0.00015044,2]
[394584981,1763738432707,-183.39542232,0.00015044,2]
[394584982,1763738432800,-116.60457768,0.00015044,2]
[394584983,1763738435971,-195.0,0.00015044,2]
[394584984,1763738436002,-195.0,0.00015045,2]
[394584985,1763738436036,-500.0,0.00015045,2]
[394584986,1763738436070,-500.0,0.00015045,2]
[394584987,1763738436101,-500.0,0.00015045,2]
[394584988,1763738436136,-500.0,0.00015045,2]
[394584989,1763738436169,-500.0,0.00015045,2]
[394584990,1763738436202,-500.0,0.00015045,2]
[394584991,1763738436234,-1043.5,0.00015045,2]
[394584992,1763738436269,-500.0,0.00015045,2]
[394584993,1763738436617,-133.01,0.00015045,2]
[394584994,1763738468247,427.969937,7.945e-05,2]
[394584995,1763738714020,3475.73572953,0.00022,30]
[394584996,1763738741555,61276.41834899,0.0002,30]
[394584997,1763738752193,527.61564292,0.0001075,30]
[394584999,1763738776715,246707.52340275,0.000209,30]
[394585000,1763738804292,-200.0,0.0001476,2]
[394585001,1763738804330,-153.27907054,0.00014895,2]
[394585002,1763738804371,-195.0,0.0001492,2]
[394585003,1763738804407,-1000.0,0.00014931,2]
[394585004,1763738804442,-500.0,0.00014945,2]
[394585005,1763738804478,-300.0,0.00014945,2]
[394585006,1763738804513,-250.0,0.00014945,2]
[394585007,1763738804548,-1000.0,0.00014946,2]
[394585008,1763738804580,-1129.941,0.00014946,2]
[394585009,1763738804800,-543.56985892,0.00014946,2]
[394585010,1763738810758,-1956.43014108,0.00014946,2]
[394585011,1763738810791,-153.27907053,0.00014955,2]
[394585012,1763738810825,-1619.98191613,0.00014973,2]
[394585013,1763738810859,-195.0,0.00014994,2]
[394585014,1763738810892,-250.0,0.00014995,2]
[394585015,1763738810925,-374.02973011,0.00015,2]
[394585016,1763738811091,-902.5682843,0.00015042,2]
[394585017,1763738906982,258.12335071,0.00014,30]
[394585018,1763738907175,-3000.0,0.000149,2]
[394585019,1763738907220,-4000.01,0.000149,2]
[394585020,1763738908579,-10000.01,0.000149,2]
[394585021,1763738908605,-10000.01,0.000149,2]
[394585022,1763738908643,-10000.01,0.000149,2]
[394585023,1763738908707,-10000.01,0.000149,2]
[394585024,1763738908726,-10000.01,0.000149,2]
[394585025,1763738908748,-10000.01,0.000149,2]
[394585026,1763738908801,-10000.01,0.000149,2]
[394585027,1763738908830,-10000.01,0.000149,2]
[394585028,1763738911245,-10000.01,0.000149,2]
[394585029,1763738911423,-10000.01,0.000149,2]
[394585030,1763738911772,2079.08,0.00019178,30]
[394585031,1763738915671,-4765.86201869,0.000149,2]
[394585032,1763738915708,-188.78032122,0.0001495,2]
[394585033,1763738915794,-90.72532018,0.0001495,2]
[394585034,1763738915829,-1773.68999171,0.00014973,2]
[394585035,1763738915862,-164.98640553,0.00014973,2]
[394585036,1763738915895,-300.0,0.00015041,2]
[394585037,1763738915927,-250.0,0.00015042,2]
[394585038,1763738915963,-2361.75257656,0.00015042,2]
[394585039,1763738916083,1590.18103457,0.0002041,30]
[394585040,1763738916128,-117.70141204,0.00015042,2]
[394585041,1763738916502,-90.72532018,0.00015042,2]
[394585042,1763738916631,-117.70141204,0.00015042,2]
[394585043,1763738916663,-9764.60717592,0.00015042,2]
[394585044,1763738916727,-10000.01,0.00015042,2]
[394585045,1763738922155,-10000.01,0.00015042,2]
[394585046,1763738922291,-10000.01,0.00015042,2]
[394585047,1763738922478,-10000.01,0.00015042,2]
[394585048,1763738922689,-1510.12998706,0.00015042,2]
[394585049,1763738922723,-195.0,0.00015043,2]
[394585050,1763738922755,-250.0,0.00015043,2]
[394585051,1763738922787,-172.45,0.00015044,2]
[394585052,1763738922820,-1200.0,0.00015044,2]
[394585053,1763738922854,-300.0,0.00015044,2]
[394585054,1763738922884,-500.0,0.00015044,2]
[394585055,1763738922917,-500.0,0.00015044,2]
[394585056,1763738922954,-244.85002588,0.00015044,2]
[394585057,1763738923296,-255.14997412,0.00015044,2]
[394585058,1763738925080,-500.0,0.00015044,2]
[394585059,1763738925112,-500.0,0.00015044,2]
[394585060,1763738925145,-465.47263152,0.00015044,2]
[394585061,1763738925182,-500.0,0.00015044,2]
[394585062,1763738925230,-315.86207471,0.00015044,2]
[394585063,1763738925267,-500.0,0.00015044,2]
[394585064,1763738925305,-500.0,0.00015044,2]
[394585065,1763738925343,-396.59509823,0.00015044,2]
[394585066,1763738925383,-500.0,0.00015044,2]
[394585067,1763738925425,-500.0,0.00015044,2]
[394585068,1763738925466,-144.15039108,0.00015044,2]
[394585069,1763738925585,-355.84960892,0.00015044,2]
[394585070,1763738925627,-500.0,0.00015044,2]
[394585071,1763738925674,-500.0,0.00015044,2]
[394585072,1763738925729,-500.0,0.00015044,2]
[394585073,1763738925770,-500.0,0.00015044,2]
[394585074,1763738925810,-500.0,0.00015044,2]
[394585075,1763738925849,-500.0,0.00015044,2]
[394585076,1763738925888,-500.0,0.00015044,2]
[394585077,1763738925926,-500.0,0.00015044,2]
[394585078,1763738925969,-500.0,0.00015044,2]
[394585079,1763738926097,-500.0,0.00015044,2]
[394585080,1763738926136,-500.0,0.00015044,2]
[394585081,1763738926174,-500.0,0.00015044,2]
[394585082,1763738926230,-500.0,0.00015044,2]
[394585083,1763738926291,-500.0,0.00015044,2]
[394585084,1763738926360,-500.0,0.00015044,2]
[394585085,1763738926435,-500.0,0.00015044,2]
[394585086,1763738926508,-500.0,0.00015044,2]
[394585087,1763738926569,-500.0,0.00015044,2]
[394585088,1763738926650,-500.0,0.00015044,2]
[394585089,1763738928757,-144.16039108,0.00015044,2]
[394585090,1763738928811,-355.83960892,0.00015044,2]
[394585091,1763738928822,-144.16039108,0.00015045,2]
[394585092,1763738929483,-0.01,0.00015045,2]
[394585093,1763738929846,-77.02968588,0.00015045,2]
[394585094,1763738929881,-218.49863639,0.00015045,2]
[394585095,1763738929913,-500.0,0.00015045,2]
[394585096,1763738929945,-500.0,0.00015045,2]
[394585097,1763738929980,-392.80163939,0.00015045,2]
[394585098,1763738930011,-304.9296007,0.00015045,2]
[394585099,1763738934563,500.0,0.00015044,2]
[394585100,1763738934625,500.0,0.00015044,2]
[394585101,1763738934708,500.0,0.00015044,2]
[394585102,1763738934757,500.0,0.00015044,2]
[394585103,1763738934797,500.0,0.00015044,2]
[394585104,1763738934839,500.0,0.00015044,2]
[394585105,1763738934890,500.0,0.00015044,2]
[394585106,1763738934961,500.0,0.00015044,2]
[394585107,1763738935007,500.0,0.00015044,2]
[394585108,1763738935125,500.0,0.00015044,2]
[394585109,1763738935221,500.0,0.00015044,2]
[394585110,1763738935340,500.0,0.00015044,2]
[394585111,1763738935391,13.49087528,0.00015044,2]
[394585112,1763738935424,486.50912472,0.00015044,2]
[394585113,1763738935474,500.0,0.00015044,2]
[394585114,1763738935520,500.0,0.00015044,2]
[394585115,1763738935569,500.0,0.00015044,2]
[394585116,1763738935618,500.0,0.00015044,2]
[394585117,1763738935672,500.0,0.00015044,2]
[394585118,1763738935721,500.0,0.00015044,2]
[394585119,1763738935771,500.0,0.00015044,2]
[394585120,1763738935869,500.0,0.00015044,2]
[394585121,1763738935970,500.0,0.00015044,2]
[394585122,1763738936024,500.0,0.00015044,2]
[394585123,1763738936083,500.0,0.00015044,2]
[394585124,1763738936135,500.0,0.00015044,2]
[394585125,1763738936185,500.0,0.00015044,2]
[394585126,1763738936374,500.0,0.00015044,2]
[394585127,1763738936432,500.0,0.00015044,2]
[394585128,1763738936500,500.0,0.00015044,2]
[394585129,1763738936548,500.0,0.00015044,2]
[394585130,1763738936602,500.0,0.00015044,2]
[394585131,1763738936711,500.0,0.00015044,2]
[394585132,1763738936820,13.50087528,0.00015044,2]
[394585133,1763738936854,486.49912472,0.00015044,2]
[394585134,1763738936905,500.0,0.00015044,2]
[394585135,1763738936959,500.0,0.00015044,2]
[394585136,1763738937014,500.0,0.00015044,2]
[394585137,1763738937415,500.0,0.00015044,2]
[394585138,1763738944734,7513.51087528,0.00015044,2]
[394585139,1763738944764,10000.01,0.00015044,2]
[394585140,1763738944793,10000.01,0.00015044,2]
[394585141,1763738944821,10000.01,0.00015044,2]
[394585142,1763738944853,10000.01,0.00015044,2]
[394585143,1763738944882,10000.01,0.00015044,2]
[394585144,1763738944910,10000.01,0.00015044,2]
[394585145,1763738944936,10000.01,0.00015044,2]
[394585146,1763738961564,-410.4985,0.00014795,2]
[394585147,1763738966243,-3165.52212472,0.00015044,2]
[394585148,1763738966373,-10000.01,0.00015044,2]
[394585149,1763738966522,-10000.01,0.00015044,2]
[394585150,1763738966653,-10000.01,0.00015044,2]
[394585151,1763738968414,-10000.01,0.00015044,2]
[394585152,1763738968514,-10000.01,0.00015044,2]
[394585153,1763738968729,-10000.01,0.00015044,2]
[394585154,1763738968861,-10000.01,0.00015044,2]
[394585155,1763738969020,-10000.01,0.00015044,2]
[394585156,1763738969211,-10000.01,0.00015044,2]
[394585157,1763738972374,-10000.01,0.00015044,2]
[394585158,1763738972451,-10000.01,0.00015044,2]
[394585159,1763738972483,-8181.0438359,0.00015044,2]
[394585160,1763738972494,-500.0,0.00015044,2]
[394585161,1763738972504,-500.0,0.00015044,2]
[394585162,1763738972514,-500.0,0.00015044,2]
[394585163,1763738972525,-318.9661641,0.00015044,2]
[394585164,1763738975113,-181.0338359,0.00015044,2]
[394585165,1763738975149,-500.0,0.00015044,2]
[394585166,1763738975185,-500.0,0.00015044,2]
[394585167,1763738975222,-500.0,0.00015044,2]
[394585168,1763738975261,-500.0,0.00015044,2]
[394585169,1763738975296,-500.0,0.00015044,2]
[394585170,1763738975332,-500.0,0.00015044,2]
[394585171,1763738975368,-500.0,0.00015044,2]
[394585172,1763738975405,-500.0,0.00015044,2]
[394585173,1763738975442,-500.0,0.00015044,2]
[394585174,1763738975483,-137.9423282,0.00015044,2]
[394585175,1763738975974,-362.0576718,0.00015044,2]
[394585176,1763738976019,-500.0,0.00015044,2]
[394585177,1763738976059,-500.0,0.00015044,2]
[394585178,1763738976100,-500.0,0.00015044,2]
[394585179,1763738976139,-500.0,0.00015044,2]
[394585180,1763738976178,-500.0,0.00015044,2]
[394585181,1763738976215,-500.0,0.00015044,2]
[394585182,1763738976254,-500.0,0.00015044,2]
[394585183,1763738976292,-500.0,0.00015044,2]
[394585184,1763738976331,-500.0,0.00015044,2]
[394585185,1763738976439,-500.0,0.00015044,2]
[394585186,1763738976478,-500.0,0.00015044,2]
[394585187,1763738976516,-500.0,0.00015044,2]
[394585188,1763738976555,-500.0,0.00015044,2]
[394585189,1763738976596,-500.0,0.00015044,2]
[394585190,1763738976637,-500.0,0.00015044,2]
[394585191,1763738976679,-500.0,0.00015044,2]
[394585192,1763738976719,-500.0,0.00015044,2]
[394585193,1763738976757,-500.0,0.00015044,2]
[394585194,1763738976795,-500.0,0.00015044,2]
[394585195,1763738977513,-137.9523282,0.00015044,2]
[394585196,1763738977531,-362.0476718,0.00015044,2]
[394585197,1763738977541,-137.9523282,0.00015044,2]
[394585198,1763738977558,-0.01,0.00015044,2]
[394585199,1763738978975,-362.0376718,0.00015044,2]
[394585200,1763738979014,-500.0,0.00015044,2]
[394585201,1763738979053,-500.0,0.00015044,2]
[394585202,1763738979093,-500.0,0.00015044,2]
[394585203,1763738979133,-293.88832181,0.00015044,2]
[394585204,1763738979168,-250.0,0.00015045,2]
[394585205,1763738979200,-195.0,0.00015045,2]
[394585206,1763738979232,-256.34910972,0.00015045,2]
[394585207,1763738991347,4285.45979334,0.00014945,2]
[394585208,1763738991379,10000.01,0.00014945,2]
[394585209,1763738991412,10000.01,0.00014945,2]
[394585210,1763738991445,10000.01,0.00014945,2]
[394585211,1763738991481,10000.01,0.00014945,2]
[394585212,1763738991519,10000.01,0.00014945,2]
[394585213,1763738997210,-5714.55020666,0.00014945,2]
[394585214,1763738997348,-10000.01,0.00014945,2]
[394585215,1763738997479,-10000.01,0.00014945,2]
[394585216,1763739001447,-10000.01,0.00014945,2]
[394585217,1763739001559,-10000.01,0.00014945,2]
[394585218,1763739001971,-1200.0,0.00014944,2]
[394585219,1763739002006,-150.0,0.00014944,2]
[394585220,1763739002180,-7300.01,0.00014945,2]
[394585221,1763739005266,-300.0,0.00014944,2]
[394585222,1763739005304,-300.0,0.00014944,2]
[394585223,1763739005386,-8800.01,0.00014945,2]
[394585224,1763739005481,-10000.01,0.00014945,2]
[394585225,1763739005645,-10000.01,0.00014945,2]
[394585226,1763739009603,-10000.01,0.00014945,2]
[394585227,1763739009743,-10000.01,0.00014945,2]
[394585228,1763739009877,-10000.01,0.00014945,2]
[394585229,1763739010059,-10000.01,0.00014945,2]
[394585230,1763739012843,-10000.01,0.00014945,2]
[394585231,1763739016471,-10000.01,0.00014945,2]
[394585232,1763739016772,-10000.01,0.00014945,2]
[394585233,1763739016812,-10000.01,0.00014945,2]
[394585234,1763739016944,-10000.01,0.00014945,2]
[394585235,1763739024216,-10000.01,0.00014945,2]
[394585236,1763739024397,-10000.01,0.00014945,2]
[394585237,1763739024532,-10000.01,0.00014945,2]
[394585238,1763739026160,-10000.01,0.00014945,2]
[394585239,1763739026188,-10000.01,0.00014945,2]
[394585240,1763739031442,-1963.86,0.00014935,2]
[394585241,1763739031480,-1963.86,0.00014935,2]
[394585242,1763739031625,-2144.57,0.00014945,2]
[394585243,1763739031767,-10000.01,0.00014945,2]
[394585248,1763739031869,-10000.01,0.00014945,2]
[394585257,1763739032055,-273.01245535,0.00014944,2]
[394585258,1763739032071,-1750.13027754,0.00014945,2]
[394585259,1763739032089,-250.0,0.00014945,2]
[394585269,1763739032441,-500.0,0.00014944,2]
[394585270,1763739032456,-9500.01,0.00014945,2]
[394585271,1763739034628,-320.26336465,0.00014944,2]
[394585272,1763739034664,-500.0,0.00014944,2]
[394585273,1763739034702,-367.85624486,0.00014944,2]
[394585274,1763739034827,-7623.77078098,0.00014945,2]
[394585275,1763739038236,-442631.21894148,0.00014945,2]
[394585276,1763739038247,-195.0,0.00014945,2]
[394585277,1763739038258,-400.5479,0.00014946,2]
[394585278,1763739038268,-3870.069,0.00014946,2]
[394585279,1763739038279,-2500.0,0.00014946,2]
[394585280,1763739038291,-500.0,0.00015073,2]
[394585281,1763739038301,-500.0,0.00015073,2]
[394585282,1763739038311,-500.0,0.00015073,2]
[394585283,1763739038321,-1773.6899917,0.00015298,2]
[394585284,1763739038331,-1043.5,0.00015319,2]
[394585285,1763739038341,-164.98640551,0.00015339,2]
[394585286,1763739038351,-2751.0,0.00015365,2]
[394585287,1763739038362,-1065.28343162,0.000154,2]
[394585288,1763739038372,-250.0,0.0001552,2]
[394585289,1763739038382,-1043.5,0.00015593,2]
[394585290,1763739038392,-980.0902075,0.00015621,2]
[394585291,1763739038403,-1000.0,0.00015621,2]
[394585292,1763739038413,-243.41019831,0.00015621,2]
[394585293,1763739038427,-1773.6899917,0.00015623,2]
[394585294,1763739038437,-164.98640551,0.00015705,2]
[394585295,1763739038447,-1043.5,0.00015867,2]
[394585296,1763739038458,-1773.6899917,0.00015949,2]
[394585297,1763739038468,-166.66,0.00015989,2]
[394585298,1763739038478,-150.0,0.00016045,2]
[394585299,1763739038488,-255.0,0.00016065,2]
[394585300,1763739038499,-164.98640551,0.00016071,2]
[394585301,1763739038510,-1043.5,0.00016141,2]
[394585302,1763739038520,-503.97501488,0.00016168,2]
[394585303,1763739038530,-1773.6899917,0.00016274,2]
[394585304,1763739038543,-166.27,0.0001632,2]
[394585305,1763739038553,-166.66,0.00016325,2]
[394585306,1763739038563,-420.0,0.00016356,2]
[394585307,1763739038575,-420.0,0.00016356,2]
[394585308,1763739038587,-195.0,0.0001639,2]
[394585309,1763739038597,-1043.5,0.00016415,2]
[394585310,1763739038608,-164.98640551,0.00016437,2]